[Event "Early-Titled-Tuesday-Blitz-July-09-2024"]
[Site "Chess.com"]
[Date "2024.07.09"]
[Round "11"]
[White "Alex_Sahakyan2006"]
[Black "Zq1"]
[Result "1-0"]
[WhiteElo "2735"]
[BlackElo "2586"]
[TimeControl "180+1"]
[EndTime "10:07:18 PDT"]
[Termination "Alex_Sahakyan2006 won by checkmate"]

1. e4 {[%clk 0:03:00.9]} 1... c5 {[%clk 0:02:58]} 2. d3 {[%clk 0:02:58.4]} 2...
d5 {[%clk 0:02:56.6]} 3. exd5 {[%clk 0:02:57.4]} 3... Qxd5 {[%clk 0:02:55.8]} 4.
Nc3 {[%clk 0:02:58]} 4... Qd8 {[%clk 0:02:49]} 5. Nf3 {[%clk 0:02:57.5]} 5...
Nc6 {[%clk 0:02:47.2]} 6. h3 {[%clk 0:02:56.1]} 6... g6 {[%clk 0:02:46.8]} 7.
Be3 {[%clk 0:02:56.2]} 7... b6 {[%clk 0:02:46.4]} 8. g3 {[%clk 0:02:54.4]} 8...
Bg7 {[%clk 0:02:45.4]} 9. Bg2 {[%clk 0:02:55]} 9... Bb7 {[%clk 0:02:45.7]} 10.
O-O {[%clk 0:02:55.1]} 10... Nf6 {[%clk 0:02:45.4]} 11. a4 {[%clk 0:02:55.5]}
11... O-O {[%clk 0:02:44.4]} 12. Qd2 {[%clk 0:02:56.1]} 12... Re8 {[%clk
0:02:43.3]} 13. Rfe1 {[%clk 0:02:55.3]} 13... e5 {[%clk 0:02:27.8]} 14. Bg5
{[%clk 0:02:45.6]} 14... Qc8 {[%clk 0:02:24.1]} 15. Bh6 {[%clk 0:02:25]} 15...
Bh8 {[%clk 0:02:19.4]} 16. Re3 {[%clk 0:02:13.9]} 16... Nd4 {[%clk 0:01:54.2]}
17. Nxe5 {[%clk 0:01:25.8]} 17... Bxg2 {[%clk 0:01:52.4]} 18. Kxg2 {[%clk
0:01:26.7]} 18... Qb7+ {[%clk 0:01:48.2]} 19. Nf3 {[%clk 0:00:38]} 19... Rxe3
{[%clk 0:01:44.1]} 20. Qxe3 {[%clk 0:00:38.9]} 20... Nxc2 {[%clk 0:01:36]} 21.
Qc1 {[%clk 0:00:25.6]} 21... Nxa1 {[%clk 0:01:35.5]} 22. Qxa1 {[%clk 0:00:26.5]}
22... Rd8 {[%clk 0:01:29.7]} 23. Qf1 {[%clk 0:00:17.9]} 23... Nd5 {[%clk
0:01:20.1]} 24. Ne4 {[%clk 0:00:14.8]} 24... Nb4 {[%clk 0:01:19.2]} 25. Qe2
{[%clk 0:00:10.1]} 25... Nxd3 {[%clk 0:01:09.1]} 26. Bg5 {[%clk 0:00:09.6]}
26... f6 {[%clk 0:00:53.8]} 27. Bxf6 {[%clk 0:00:01.9]} 27... Bxf6 {[%clk
0:00:47.5]} 28. Nxf6+ {[%clk 0:00:02.8]} 28... Kg7 {[%clk 0:00:43.1]} 29. Ng4
{[%clk 0:00:03.5]} 29... Rd5 {[%clk 0:00:20.9]} 30. Qe3 {[%clk 0:00:03.5]} 30...
Kf7 {[%clk 0:00:08.5]} 31. Nh6+ {[%clk 0:00:03.3]} 31... Kg7 {[%clk 0:00:08.2]}
32. Ng4 {[%clk 0:00:04.2]} 32... Kf7 {[%clk 0:00:08.4]} 33. Kh2 {[%clk
0:00:03.9]} 33... Qd7 {[%clk 0:00:05.6]} 34. Ng5+ {[%clk 0:00:04]} 34... Kf8
{[%clk 0:00:04.7]} 35. Nf6 {[%clk 0:00:03.4]} 35... Qf5 {[%clk 0:00:02.5]} 36.
Qe8+ {[%clk 0:00:01.5]} 36... Kg7 {[%clk 0:00:01.9]} 37. Qf7+ {[%clk 0:00:02.4]}
37... Kh6 {[%clk 0:00:01]} 38. Qxh7+ {[%clk 0:00:03.3]} 38... Kxg5 {[%clk
0:00:01.2]} 39. Qh4# {[%clk 0:00:04.2]} 1-0

[Event "Early-Titled-Tuesday-Blitz-July-09-2024"]
[Site "Chess.com"]
[Date "2024.07.09"]
[Round "11"]
[White "FloMasterAAK"]
[Black "BogdanDeac"]
[Result "1-0"]
[WhiteElo "2637"]
[BlackElo "2971"]
[TimeControl "180+1"]
[EndTime "10:07:20 PDT"]
[Termination "FloMasterAAK won by resignation"]

1. e4 {[%clk 0:03:00.9]} 1... e6 {[%clk 0:02:56.4]} 2. d4 {[%clk 0:03:00.7]}
2... d5 {[%clk 0:02:56.6]} 3. Nc3 {[%clk 0:03:01.1]} 3... Nf6 {[%clk 0:02:55.1]}
4. Bg5 {[%clk 0:03:01]} 4... dxe4 {[%clk 0:02:40.5]} 5. Nxe4 {[%clk 0:03:00.1]}
5... Be7 {[%clk 0:02:40.8]} 6. Bxf6 {[%clk 0:03:00.3]} 6... gxf6 {[%clk
0:02:41]} 7. Nf3 {[%clk 0:03:00.4]} 7... b6 {[%clk 0:02:38.9]} 8. g3 {[%clk
0:02:56.2]} 8... Bb7 {[%clk 0:02:38.1]} 9. Nc3 {[%clk 0:02:54.6]} 9... Nc6
{[%clk 0:02:34.4]} 10. d5 {[%clk 0:02:42.2]} 10... Nb4 {[%clk 0:02:33.1]} 11.
Bb5+ {[%clk 0:02:40]} 11... Kf8 {[%clk 0:02:32.4]} 12. O-O {[%clk 0:02:39.2]}
12... Nxd5 {[%clk 0:02:31.2]} 13. Qd2 {[%clk 0:02:08]} 13... Nxc3 {[%clk
0:02:23]} 14. Qxc3 {[%clk 0:02:08.9]} 14... Qd5 {[%clk 0:02:19.3]} 15. Be2
{[%clk 0:02:08.5]} 15... Qc5 {[%clk 0:02:19.4]} 16. Qd2 {[%clk 0:02:07.1]} 16...
h5 {[%clk 0:02:17.3]} 17. Rad1 {[%clk 0:01:59.1]} 17... Rd8 {[%clk 0:02:01]} 18.
Qc1 {[%clk 0:01:39.1]} 18... Kg7 {[%clk 0:01:46.9]} 19. c3 {[%clk 0:01:35.4]}
19... Rd5 {[%clk 0:00:49.6]} 20. Nd4 {[%clk 0:01:01.5]} 20... h4 {[%clk
0:00:42.9]} 21. b4 {[%clk 0:00:57.1]} 21... Qd6 {[%clk 0:00:41.6]} 22. Bf3
{[%clk 0:00:56.8]} 22... Qe5 {[%clk 0:00:12.5]} 23. Rfe1 {[%clk 0:00:51.9]}
23... Qd6 {[%clk 0:00:11.5]} 24. Bxd5 {[%clk 0:00:50.1]} 24... Qxd5 {[%clk
0:00:10.6]} 25. f3 {[%clk 0:00:48.1]} 25... Qc4 {[%clk 0:00:05.8]} 26. Qf4
{[%clk 0:00:45.5]} 26... Bd5 {[%clk 0:00:04.5]} 27. Nf5+ {[%clk 0:00:43.6]}
27... Kf8 {[%clk 0:00:02.5]} 28. Qxc4 {[%clk 0:00:29.9]} 28... Bxc4 {[%clk
0:00:03.4]} 29. Rd7 {[%clk 0:00:28.8]} 29... exf5 {[%clk 0:00:03.6]} 30. Rexe7
{[%clk 0:00:22.6]} 30... hxg3 {[%clk 0:00:03.3]} 31. hxg3 {[%clk 0:00:21.9]}
31... Kg7 {[%clk 0:00:03.3]} 32. Rxc7 {[%clk 0:00:21.5]} 32... Bxa2 {[%clk
0:00:03.6]} 33. c4 {[%clk 0:00:20.4]} 33... a5 {[%clk 0:00:02.1]} 34. Rxf7+
{[%clk 0:00:19.6]} 34... Kg6 {[%clk 0:00:02.6]} 35. Rg7+ {[%clk 0:00:19.7]}
35... Kh6 {[%clk 0:00:02.8]} 36. Rgf7 {[%clk 0:00:16.8]} 36... Kg6 {[%clk
0:00:02.8]} 37. bxa5 {[%clk 0:00:14.8]} 37... bxa5 {[%clk 0:00:03]} 38. Rg7+
{[%clk 0:00:15.7]} 38... Kh6 {[%clk 0:00:03]} 39. Rgd7 {[%clk 0:00:14.8]} 39...
a4 {[%clk 0:00:02.9]} 40. Rd2 {[%clk 0:00:14.5]} 1-0

[Event "Early-Titled-Tuesday-Blitz-July-09-2024"]
[Site "Chess.com"]
[Date "2024.07.09"]
[Round "11"]
[White "TioCridineno"]
[Black "Ginger_GM"]
[Result "1-0"]
[WhiteElo "2459"]
[BlackElo "2596"]
[TimeControl "180+1"]
[EndTime "10:07:20 PDT"]
[Termination "TioCridineno won by resignation"]

1. e4 {[%clk 0:03:00.9]} 1... c5 {[%clk 0:02:59.6]} 2. Nf3 {[%clk 0:03:00.8]}
2... d6 {[%clk 0:03:00]} 3. d4 {[%clk 0:03:00.5]} 3... cxd4 {[%clk 0:03:00.7]}
4. Nxd4 {[%clk 0:03:01.1]} 4... Nf6 {[%clk 0:03:00.4]} 5. Nc3 {[%clk 0:03:01.6]}
5... g6 {[%clk 0:03:00.8]} 6. g3 {[%clk 0:03:01]} 6... Nc6 {[%clk 0:03:00.5]} 7.
Nde2 {[%clk 0:02:59.6]} 7... Bg7 {[%clk 0:03:00.7]} 8. Bg2 {[%clk 0:02:59.6]}
8... Bd7 {[%clk 0:03:01.2]} 9. O-O {[%clk 0:02:59.4]} 9... Qc8 {[%clk
0:03:01.6]} 10. a4 {[%clk 0:02:58.7]} 10... Bh3 {[%clk 0:03:01.1]} 11. Nd5
{[%clk 0:02:56.4]} 11... h5 {[%clk 0:03:00.7]} 12. Nef4 {[%clk 0:02:50.8]} 12...
Bxg2 {[%clk 0:03:00.2]} 13. Nxg2 {[%clk 0:02:50.6]} 13... Ne5 {[%clk 0:02:57.4]}
14. Qe2 {[%clk 0:02:45.2]} 14... Nxd5 {[%clk 0:02:49.5]} 15. exd5 {[%clk
0:02:44.2]} 15... h4 {[%clk 0:02:45.9]} 16. Nxh4 {[%clk 0:02:40.4]} 16... Qh3
{[%clk 0:02:44.9]} 17. f4 {[%clk 0:02:34]} 17... Ng4 {[%clk 0:02:29.7]} 18. Qg2
{[%clk 0:02:33.1]} 18... Rxh4 {[%clk 0:02:25.2]} 19. gxh4 {[%clk 0:02:23.7]}
19... Qxh4 {[%clk 0:02:17.9]} 20. c3 {[%clk 0:02:19.3]} 20... O-O-O {[%clk
0:02:15.7]} 21. h3 {[%clk 0:02:18.5]} 21... Nf6 {[%clk 0:02:13.5]} 22. Be3
{[%clk 0:02:18]} 22... Rh8 {[%clk 0:02:12]} 23. Rf3 {[%clk 0:02:03.6]} 23...
Nxd5 {[%clk 0:02:06.2]} 24. Bd2 {[%clk 0:02:03.4]} 24... e6 {[%clk 0:02:00.3]}
25. a5 {[%clk 0:01:57.5]} 25... Ne7 {[%clk 0:01:57]} 26. a6 {[%clk 0:01:55]}
26... b6 {[%clk 0:01:56.7]} 27. Rd3 {[%clk 0:01:49.9]} 27... d5 {[%clk
0:01:56.7]} 28. c4 {[%clk 0:01:44.4]} 28... Qh5 {[%clk 0:01:49.1]} 29. Rc1
{[%clk 0:01:39.8]} 29... Kb8 {[%clk 0:01:46.4]} 30. c5 {[%clk 0:01:36.8]} 30...
b5 {[%clk 0:01:42.9]} 31. b4 {[%clk 0:01:22.6]} 31... Nc6 {[%clk 0:01:42.5]} 32.
Re1 {[%clk 0:00:37.1]} 32... Qf5 {[%clk 0:01:32.2]} 33. Qf1 {[%clk 0:00:23.9]}
33... Ka8 {[%clk 0:01:16.9]} 34. Rg3 {[%clk 0:00:20.6]} 34... Nd4 {[%clk
0:01:05.7]} 35. Be3 {[%clk 0:00:18.3]} 35... Rh4 {[%clk 0:00:57.3]} 36. Bxd4
{[%clk 0:00:15.1]} 36... Bxd4+ {[%clk 0:00:57.2]} 37. Kg2 {[%clk 0:00:15.5]}
37... Rxf4 {[%clk 0:00:38.5]} 38. Qxb5 {[%clk 0:00:15]} 38... Rf2+ {[%clk
0:00:37.8]} 39. Kh1 {[%clk 0:00:15.2]} 39... Rh2+ {[%clk 0:00:20]} 40. Kxh2
{[%clk 0:00:14]} 40... Qf2+ {[%clk 0:00:20.9]} 41. Rg2 {[%clk 0:00:14.3]} 41...
Qf4+ {[%clk 0:00:14]} 42. Kh1 {[%clk 0:00:13.8]} 42... Qc7 {[%clk 0:00:14.6]}
43. Rf1 {[%clk 0:00:10.5]} 1-0

[Event "Early-Titled-Tuesday-Blitz-July-09-2024"]
[Site "Chess.com"]
[Date "2024.07.09"]
[Round "11"]
[White "SahibSinghKnight"]
[Black "ShahMatKanal"]
[Result "0-1"]
[WhiteElo "2657"]
[BlackElo "2577"]
[TimeControl "180+1"]
[EndTime "10:07:23 PDT"]
[Termination "ShahMatKanal won by resignation"]

1. e4 {[%clk 0:03:00.9]} 1... c6 {[%clk 0:02:58.9]} 2. d4 {[%clk 0:02:58.2]}
2... d5 {[%clk 0:02:59.3]} 3. e5 {[%clk 0:02:57.9]} 3... Bf5 {[%clk 0:02:58.6]}
4. h4 {[%clk 0:02:56.8]} 4... h5 {[%clk 0:02:58.9]} 5. Bd3 {[%clk 0:02:56]} 5...
Bxd3 {[%clk 0:02:58.3]} 6. Qxd3 {[%clk 0:02:56.9]} 6... e6 {[%clk 0:02:58.7]} 7.
Nd2 {[%clk 0:02:48.1]} 7... Qa5 {[%clk 0:02:52.6]} 8. Nf3 {[%clk 0:02:43.8]}
8... c5 {[%clk 0:02:50.7]} 9. c4 {[%clk 0:02:31.9]} 9... dxc4 {[%clk 0:02:44.4]}
10. Qxc4 {[%clk 0:02:31.8]} 10... Nc6 {[%clk 0:02:34.8]} 11. O-O {[%clk
0:02:29.5]} 11... cxd4 {[%clk 0:02:26.9]} 12. Nb3 {[%clk 0:02:28.3]} 12... Qb4
{[%clk 0:02:22.6]} 13. Qxb4 {[%clk 0:02:25.6]} 13... Bxb4 {[%clk 0:02:23.5]} 14.
a3 {[%clk 0:02:24.4]} 14... Be7 {[%clk 0:02:21]} 15. Nbxd4 {[%clk 0:02:23.7]}
15... Nxd4 {[%clk 0:02:05.8]} 16. Nxd4 {[%clk 0:02:24.1]} 16... a6 {[%clk
0:02:03.1]} 17. g3 {[%clk 0:02:22.4]} 17... Bc5 {[%clk 0:01:58.4]} 18. Be3
{[%clk 0:02:22.2]} 18... Bxd4 {[%clk 0:01:51.2]} 19. Bxd4 {[%clk 0:02:22.6]}
19... Ne7 {[%clk 0:01:51.5]} 20. Bc5 {[%clk 0:02:22.6]} 20... Nd5 {[%clk
0:01:51.2]} 21. f4 {[%clk 0:02:17.3]} 21... g6 {[%clk 0:01:49.6]} 22. Rac1
{[%clk 0:02:16.1]} 22... Kd7 {[%clk 0:01:48.1]} 23. Rfd1 {[%clk 0:02:15.7]}
23... Rhc8 {[%clk 0:01:44.2]} 24. Kf2 {[%clk 0:02:15.7]} 24... Rc6 {[%clk
0:01:43.3]} 25. Bd4 {[%clk 0:01:52.7]} 25... Rac8 {[%clk 0:01:41.7]} 26. Rxc6
{[%clk 0:01:33.7]} 26... Rxc6 {[%clk 0:01:42.6]} 27. Ke2 {[%clk 0:01:34.2]}
27... Rc2+ {[%clk 0:01:40.9]} 28. Rd2 {[%clk 0:01:22.9]} 28... Rxd2+ {[%clk
0:01:40.6]} 29. Kxd2 {[%clk 0:01:23.8]} 29... Kc6 {[%clk 0:01:40]} 30. Kd3
{[%clk 0:01:24.4]} 30... Ne7 {[%clk 0:01:39]} 31. Ke4 {[%clk 0:01:24.2]} 31...
Nf5 {[%clk 0:01:37.7]} 32. Bf2 {[%clk 0:01:24.7]} 32... Kb5 {[%clk 0:01:35.4]}
33. b3 {[%clk 0:01:24.4]} 33... a5 {[%clk 0:01:31.7]} 34. Be1 {[%clk 0:01:11.8]}
34... a4 {[%clk 0:01:30]} 35. bxa4+ {[%clk 0:01:11]} 35... Kxa4 {[%clk
0:01:30.9]} 36. Kf3 {[%clk 0:01:11.1]} 36... Kxa3 {[%clk 0:01:29.8]} 37. g4
{[%clk 0:01:11.8]} 37... Nd4+ {[%clk 0:01:14.4]} 38. Ke4 {[%clk 0:01:11.9]}
38... Nc2 {[%clk 0:01:14.1]} 39. gxh5 {[%clk 0:01:12.2]} 39... gxh5 {[%clk
0:01:13.9]} 40. Bd2 {[%clk 0:01:11.1]} 40... b5 {[%clk 0:01:10.1]} 41. f5 {[%clk
0:01:11.6]} 41... b4 {[%clk 0:01:06.3]} 42. fxe6 {[%clk 0:01:11.8]} 42... fxe6
{[%clk 0:01:05.6]} 43. Kf4 {[%clk 0:01:12.4]} 43... Nd4 {[%clk 0:01:01]} 44. Be3
{[%clk 0:01:04.2]} 44... Nf5 {[%clk 0:00:50.8]} 45. Bc1+ {[%clk 0:00:57.1]}
45... Kb3 {[%clk 0:00:45.7]} 46. Kg5 {[%clk 0:00:57.3]} 46... Kc2 {[%clk
0:00:45.9]} 47. Bf4 {[%clk 0:00:53.8]} 47... b3 {[%clk 0:00:44.9]} 48. Kxh5
{[%clk 0:00:53.4]} 48... b2 {[%clk 0:00:44.2]} 49. Kg5 {[%clk 0:00:54]} 49...
b1=Q {[%clk 0:00:44.3]} 50. h5 {[%clk 0:00:54.9]} 50... Qg1+ {[%clk 0:00:44.1]}
51. Kf6 {[%clk 0:00:55]} 51... Nd4 {[%clk 0:00:36.6]} 52. h6 {[%clk 0:00:52.9]}
52... Qg8 {[%clk 0:00:35.8]} 53. Bg5 {[%clk 0:00:49.1]} 53... Kd3 {[%clk
0:00:35.7]} 54. Bh4 {[%clk 0:00:37.2]} 54... Ke4 {[%clk 0:00:35.6]} 55. Be1
{[%clk 0:00:33]} 55... Kd5 {[%clk 0:00:35]} 56. Bd2 {[%clk 0:00:29]} 56... Nf5
{[%clk 0:00:34.8]} 57. Bg5 {[%clk 0:00:26.2]} 57... Qh7 {[%clk 0:00:31.5]} 0-1

[Event "Early-Titled-Tuesday-Blitz-July-09-2024"]
[Site "Chess.com"]
[Date "2024.07.09"]
[Round "11"]
[White "Chesstiger64"]
[Black "Aragon"]
[Result "1-0"]
[WhiteElo "2385"]
[BlackElo "2188"]
[TimeControl "180+1"]
[EndTime "10:07:23 PDT"]
[Termination "Chesstiger64 won by resignation"]

1. d4 {[%clk 0:03:00.9]} 1... d5 {[%clk 0:02:58]} 2. Nf3 {[%clk 0:03:00.9]} 2...
e6 {[%clk 0:02:56.9]} 3. e3 {[%clk 0:03:01.2]} 3... Nf6 {[%clk 0:02:55.9]} 4.
Bd3 {[%clk 0:03:00.6]} 4... c5 {[%clk 0:02:51.6]} 5. c3 {[%clk 0:03:00.7]} 5...
cxd4 {[%clk 0:02:49]} 6. exd4 {[%clk 0:02:59.5]} 6... Nbd7 {[%clk 0:02:43.8]} 7.
Bf4 {[%clk 0:02:58.5]} 7... Qb6 {[%clk 0:02:42]} 8. Qb3 {[%clk 0:02:55.9]} 8...
Ne4 {[%clk 0:02:34.7]} 9. O-O {[%clk 0:02:52.5]} 9... Bd6 {[%clk 0:02:30.7]} 10.
Bxd6 {[%clk 0:02:50.4]} 10... Nxd6 {[%clk 0:02:29.1]} 11. Nbd2 {[%clk
0:02:49.5]} 11... O-O {[%clk 0:02:22.1]} 12. Qc2 {[%clk 0:02:48.6]} 12... g6
{[%clk 0:02:06.9]} 13. h4 {[%clk 0:02:48]} 13... Nf6 {[%clk 0:02:03.4]} 14. Rfe1
{[%clk 0:02:46.8]} 14... Bd7 {[%clk 0:02:03]} 15. Ne5 {[%clk 0:02:46.7]} 15...
Bb5 {[%clk 0:02:02.9]} 16. h5 {[%clk 0:02:40]} 16... Bxd3 {[%clk 0:02:01.6]} 17.
Qxd3 {[%clk 0:02:39]} 17... Kg7 {[%clk 0:01:49]} 18. Rab1 {[%clk 0:02:24.1]}
18... Qc7 {[%clk 0:01:37.9]} 19. g4 {[%clk 0:02:20.5]} 19... gxh5 {[%clk
0:01:28]} 20. g5 {[%clk 0:01:54.1]} 20... Nfe4 {[%clk 0:01:16]} 21. Nxe4 {[%clk
0:01:50.1]} 21... Nxe4 {[%clk 0:01:11.9]} 22. Rxe4 {[%clk 0:01:50.1]} 22... dxe4
{[%clk 0:01:11.9]} 23. Qxe4 {[%clk 0:01:50.4]} 23... f5 {[%clk 0:01:06.8]} 24.
Qh4 {[%clk 0:01:26.8]} 24... Kh8 {[%clk 0:00:44.1]} 25. Qxh5 {[%clk 0:01:21.7]}
25... Rae8 {[%clk 0:00:33.4]} 26. Ng6+ {[%clk 0:01:20.2]} 26... Kg8 {[%clk
0:00:29.5]} 27. Nxf8 {[%clk 0:01:18.9]} 27... Rxf8 {[%clk 0:00:30.1]} 28. Re1
{[%clk 0:01:18]} 28... Qf7 {[%clk 0:00:28.8]} 29. Qxf7+ {[%clk 0:01:16.7]} 29...
Kxf7 {[%clk 0:00:28.8]} 30. f4 {[%clk 0:01:17.2]} 30... Rc8 {[%clk 0:00:27.7]}
31. Kf2 {[%clk 0:01:16.6]} 31... b5 {[%clk 0:00:27.9]} 32. a3 {[%clk 0:01:15.6]}
32... a5 {[%clk 0:00:27.8]} 33. Ke3 {[%clk 0:01:16.1]} 33... b4 {[%clk
0:00:27.4]} 34. axb4 {[%clk 0:01:15.3]} 34... axb4 {[%clk 0:00:28.3]} 35. Kd3
{[%clk 0:01:15.4]} 35... bxc3 {[%clk 0:00:27.8]} 36. bxc3 {[%clk 0:01:15.5]}
36... Rb8 {[%clk 0:00:26.3]} 37. Rh1 {[%clk 0:01:08.6]} 37... Kg7 {[%clk
0:00:23.7]} 38. Rh6 {[%clk 0:01:07.9]} 38... Rb6 {[%clk 0:00:22.5]} 39. Kc4
{[%clk 0:01:01.5]} 39... Rc6+ {[%clk 0:00:21.5]} 40. Kb4 {[%clk 0:00:59.8]}
40... Rb6+ {[%clk 0:00:20.5]} 41. Kc4 {[%clk 0:00:50.8]} 41... Ra6 {[%clk
0:00:19.1]} 42. Kd3 {[%clk 0:00:50]} 42... Rd6 {[%clk 0:00:18]} 43. c4 {[%clk
0:00:48]} 43... Ra6 {[%clk 0:00:18.1]} 44. d5 {[%clk 0:00:46.7]} 44... Ra3+
{[%clk 0:00:18.1]} 45. Kd4 {[%clk 0:00:46.9]} 45... exd5 {[%clk 0:00:18.5]} 46.
cxd5 {[%clk 0:00:47.3]} 46... Rf3 {[%clk 0:00:18.3]} 47. Ke5 {[%clk 0:00:47.5]}
47... Rd3 {[%clk 0:00:18.2]} 48. Ra6 {[%clk 0:00:41.4]} 48... Rd1 {[%clk
0:00:16.7]} 49. Ra7+ {[%clk 0:00:36.5]} 49... Kg6 {[%clk 0:00:16.7]} 50. Ra6+
{[%clk 0:00:33.9]} 50... Kg7 {[%clk 0:00:16.6]} 51. d6 {[%clk 0:00:34.1]} 51...
Kg6 {[%clk 0:00:13]} 52. d7+ {[%clk 0:00:34.1]} 52... Kf7 {[%clk 0:00:13]} 53.
Rd6 {[%clk 0:00:34.7]} 53... Re1+ {[%clk 0:00:12]} 54. Kxf5 {[%clk 0:00:34.8]}
1-0

[Event "Early-Titled-Tuesday-Blitz-July-09-2024"]
[Site "Chess.com"]
[Date "2024.07.09"]
[Round "11"]
[White "GMMikhailKazakov"]
[Black "Yan_Dyomin2010"]
[Result "0-1"]
[WhiteElo "2505"]
[BlackElo "2727"]
[TimeControl "180+1"]
[EndTime "10:07:26 PDT"]
[Termination "Yan_Dyomin2010 won on time"]

1. d4 {[%clk 0:02:55.7]} 1... Nf6 {[%clk 0:02:59.4]} 2. c4 {[%clk 0:02:55.1]}
2... g6 {[%clk 0:02:59.1]} 3. Nc3 {[%clk 0:02:54.6]} 3... d5 {[%clk 0:02:59.6]}
4. cxd5 {[%clk 0:02:49.5]} 4... Nxd5 {[%clk 0:03:00.5]} 5. e4 {[%clk 0:02:48.9]}
5... Nxc3 {[%clk 0:03:00]} 6. bxc3 {[%clk 0:02:49.8]} 6... Bg7 {[%clk
0:03:00.6]} 7. Ba3 {[%clk 0:02:50.4]} 7... O-O {[%clk 0:02:57.5]} 8. Qb3 {[%clk
0:02:50.3]} 8... b6 {[%clk 0:02:55.7]} 9. Rd1 {[%clk 0:02:48.7]} 9... c5 {[%clk
0:02:54.2]} 10. Nf3 {[%clk 0:02:42.1]} 10... cxd4 {[%clk 0:02:54.5]} 11. cxd4
{[%clk 0:02:41.4]} 11... Nc6 {[%clk 0:02:49.5]} 12. d5 {[%clk 0:02:38]} 12...
Na5 {[%clk 0:02:48.9]} 13. Qb4 {[%clk 0:02:37.4]} 13... Bg4 {[%clk 0:02:42.6]}
14. Be2 {[%clk 0:02:31.5]} 14... Rc8 {[%clk 0:02:40.4]} 15. O-O {[%clk
0:02:27.1]} 15... Re8 {[%clk 0:02:32.9]} 16. h3 {[%clk 0:01:57.9]} 16... Bxf3
{[%clk 0:02:30.5]} 17. Bxf3 {[%clk 0:01:58.8]} 17... Rc4 {[%clk 0:02:24.3]} 18.
Qb1 {[%clk 0:01:55.2]} 18... Ra4 {[%clk 0:02:19.8]} 19. Bb4 {[%clk 0:01:47.3]}
19... Qd7 {[%clk 0:02:15.6]} 20. Be2 {[%clk 0:01:36.5]} 20... Rd8 {[%clk
0:01:41.8]} 21. d6 {[%clk 0:01:29]} 21... e6 {[%clk 0:01:29.7]} 22. Rc1 {[%clk
0:01:24.2]} 22... Nc6 {[%clk 0:00:58.7]} 23. Bc3 {[%clk 0:00:48.9]} 23... Bxc3
{[%clk 0:00:56.5]} 24. Rxc3 {[%clk 0:00:49.8]} 24... Nd4 {[%clk 0:00:56.8]} 25.
Bd1 {[%clk 0:00:36.8]} 25... Ra5 {[%clk 0:00:54.3]} 26. f4 {[%clk 0:00:25.2]}
26... Qxd6 {[%clk 0:00:53.1]} 27. e5 {[%clk 0:00:25.8]} 27... Qe7 {[%clk
0:00:49.5]} 28. Qb2 {[%clk 0:00:19.5]} 28... Rad5 {[%clk 0:00:49.4]} 29. Bf3
{[%clk 0:00:18.7]} 29... Nxf3+ {[%clk 0:00:48.9]} 30. Rcxf3 {[%clk 0:00:17.9]}
30... Rd2 {[%clk 0:00:49]} 31. Qb3 {[%clk 0:00:17.3]} 31... Qc5+ {[%clk
0:00:48.6]} 32. Kh2 {[%clk 0:00:17.1]} 32... Re2 {[%clk 0:00:44.6]} 33. Rd3
{[%clk 0:00:14.9]} 33... Rc8 {[%clk 0:00:35.7]} 34. Rfd1 {[%clk 0:00:10.9]}
34... Qf2 {[%clk 0:00:35.2]} 35. Rd8+ {[%clk 0:00:10.3]} 35... Rxd8 {[%clk
0:00:34.5]} 36. Rxd8+ {[%clk 0:00:10.7]} 36... Kg7 {[%clk 0:00:35.4]} 37. Qg3
{[%clk 0:00:10.6]} 37... Qxg3+ {[%clk 0:00:34.9]} 38. Kxg3 {[%clk 0:00:11.5]}
38... Rxa2 {[%clk 0:00:35.5]} 39. Rd7 {[%clk 0:00:12]} 39... a5 {[%clk
0:00:33.6]} 40. Rb7 {[%clk 0:00:10.7]} 40... Rb2 {[%clk 0:00:34]} 41. Ra7 {[%clk
0:00:08.1]} 41... Rb3+ {[%clk 0:00:32.8]} 42. Kf2 {[%clk 0:00:07.8]} 42... Rb4
{[%clk 0:00:33.4]} 43. Kf3 {[%clk 0:00:07.2]} 43... a4 {[%clk 0:00:33.7]} 44. g4
{[%clk 0:00:07.3]} 44... b5 {[%clk 0:00:34.3]} 45. f5 {[%clk 0:00:05.8]} 45...
gxf5 {[%clk 0:00:31.8]} 46. gxf5 {[%clk 0:00:06.7]} 46... Kh6 {[%clk 0:00:28]}
47. Rxf7 {[%clk 0:00:05.2]} 47... exf5 {[%clk 0:00:28.6]} 48. Rxf5 {[%clk
0:00:02.2]} 48... a3 {[%clk 0:00:29.2]} 0-1